[Event "TUR-ch U13-18 Open 2023"]
[Site "Antalya"]
[Date "2023.01.28"]
[Round "10"]
[White "Bozkurt, Suleyman Safa"]
[Black "Alpaslan, Utku"]
[Result "1-0"]
[ECO "B22"]
[WhiteElo "1463"]
[BlackElo "1765"]
[Annotator "NA RC COMBH"]
[PlyCount "53"]
[EventDate "2023.01.17"]
[EventType "swiss"]
[EventCountry "TUR"]
[SourceTitle "playchess.com"]
[Source "ChessBase"]
[SourceQuality "1"]
[TimeControl "5400+30"]

1. e4 {[%emt 0:01:00]} c5 {[%emt 0:01:00]} 2. c3 {[%emt 0:00:00]} Nf6 {[%emt 0:00:30]} 3. e5 {[%emt 0:00:00]} Nd5 {[%emt 0:00:30]} 4. Nf3 {[%emt 0:00:30]} Nc6 {[%emt 0:00:00]} 5. d4 {[%emt 0:00:30]} cxd4 {[%emt 0:00:00]} 6. cxd4 {[%emt 0:00:30]} d6 {[%emt 0:00:00]} 7. Bc4 {[%emt 0:00:30]} dxe5 {[%emt 0:00:00]} 8. dxe5 {[%emt 0:00:30]} Be6 {[%emt 0:00:00]} 9. O-O {[%emt 0:14:30]} g6 {[%emt 0:00:00]} 10. Qb3 {[%emt 0:15:30]} Qd7 {[%emt 0:13:30]} 11. Rd1 {[%emt 0:18:30]} Na5 {[%emt 0:01:30]} 12. Bb5 {[%emt 0:00:00]} Nxb3 {[%emt 0:02:30]} 13. Bxd7+ {[%emt 0:00:00]} Bxd7 {[%emt 0:01:30]} 14. axb3 {[%emt 0:00:00]} Be6 {[%emt 0:08:30]} 15. Ra5 {[%emt 0:14:00]} Nc7 {[%emt 0:23:30]} 16. Nd4 {[%emt 0:10:30]} Bg7 {[%emt 0:13:30]} 17. Nxe6 {[%emt 0:02:30]} fxe6 {[%emt 0:05:30]} 18. f4 {[%emt 0:00:54]} a6 {[%emt 0:05:30]} 19. Rc5 {[%emt 0:05:35]} Nd5 {[%emt 0:04:44]} 20. Nc3 {[%emt 0:00:18]} Nb4 {[%emt 0:05:06]} 21. Rc7 {[%emt 0:01:09]} b5 {[%emt 0:00:53]} 22. Rdd7 {[%emt 0:08:09]} Bf8 {[%emt 0:00:13]} 23. Be3 {[%emt 0:02:03]} Rd8 {[%emt 0:01:10]} 24. Rxd8+ {[%emt 0:00:49]} Kxd8 {[%emt 0:00:05]} 25. Ra7 {[%emt 0:00:04]} Ke8 {[%emt 0:02:16]} 26. Ne4 {[%emt 0:00:33]} Nd5 {[%emt 0:01:16]} 27. Bd2 {[%emt 0:00:06]} 1-0